Workbook

Sheet Single Member
B2: OMERS Pension Adjustment (PA) Calculator
D3: ="ver 2022.11.02" -> ver 2022.11.02
B5: Start here – enter member’s information:
B6: ="Tax Year (2004 to "&'Working Variables-Must Hide'!B6& ")" -> Tax Year (2004 to 2023) | D6: 2023
B7: =D6&" contributory earnings" -> 2023 contributory earnings | D7: 26000
B8: =D6&" credited service (in months, rounded to 2 decimal places)" -> 2023 credited service (in months, rounded to 2 decimal places) | D8: 7
B11: ="PA to report for "&D6&" tax year:" -> PA to report for 2023 tax year:
B12: =TaxYearSM&" PA" -> 2023 PA | D12: =ROUND(MAX(0,MIN(9*BE-PAOffset)),0) -> 2751
B15: ="Other information used in the calculation of the "&D6&" PA:" -> Other information used in the calculation of the 2023 PA:
B16: Annualized contributory earnings | D16: =ContEarn/(CredServ/12) -> 44571.42857
B17: Year’s Maximum Pensionable Earnings (YMPE) | D17: =VLOOKUP(TaxYearSM,ITA_Table,'Working Variables-Must Hide'!$C$2,FALSE) -> 66600
B18: Year's lifetime pension (OMERS) | D18: =(0.01325*MIN(AnnContEarn,YMPESM)+0.02*MAX(0,AnnContEarn-YMPESM))*CredServ/12 -> 344.5
B19: ="Maximum DB benefit entitlement (i.e., "&TEXT(VLOOKUP(TaxYearSM,ITA_Table,'Working Variables-Must Hide'!$F$2,FALSE),"$#,##0.00")&", prorated on credited service)" -> Maximum DB benefit entitlement (i.e., $3,506.67, prorated on credited service) | D19: =VLOOKUP(TaxYearSM,ITA_Table,'Working Variables-Must Hide'!$F$2,FALSE)*CredServ/12 -> 2045.5575
B20: Is Year's lifetime pension greater than maximum DB benefit entitlement? | D20: =IF(D18>MaxDBAccrual,"Yes","No") -> No
B21: Benefit entitlement | D21: =(D20="Yes")*MaxDBAccrual+(D20="No")*D18 -> 344.5
B22: ="PA offset (i.e., "&TEXT(VLOOKUP(TaxYearSM,ITA_Table,'Working Variables-Must Hide'!$E$2,FALSE),"$#,##0")&", prorated on credited service)" -> PA offset (i.e., $600, prorated on credited service) | D22: =VLOOKUP(TaxYearSM,ITA_Table,'Working Variables-Must Hide'!$E$2,FALSE)*CredServ/12 -> 350

Sheet Multiple Members
M1: MUST HIDE THIS COLUMN M
B2: OMERS Pension Adjustment (PA) Calculator | L2: ='Single Member'!D3 -> ver 2022.11.02
B4: Start here – enter information to be applied to all members:
B5: ='Single Member'!B6 -> Tax Year (2004 to 2023) | D5: 2023
B7: Other information used in the calculation of contributions: | L7: (Press this button before printing to
B8: Year’s Maximum Pensionable Earnings (YMPE) | D8: =VLOOKUP(TaxYearMM,ITA_Table,'Working Variables-Must Hide'!$C$2,FALSE) -> 66600 | L8: automatically set print range.)
B10: Multiple member inputs and contribution results:
E11: =TaxYearMM&" Credited" -> 2023 Credited | H11: Maximum DB | I11: Is Year's lifetime | K11: PA Offset
E12: Service | H12: Benefit Entitlement | I12: pension greater | K12: ="(i.e., "&TEXT(VLOOKUP(TaxYearMM,ITA_Table,'Working Variables-Must Hide'!$E$2,FALSE),"$#,##0")&"," -> (i.e., $600,
D13: =TaxYearMM -> 2023 | E13: (in months | F13: Annualized | G13: Year's lifetime | H13: ="(i.e., "&TEXT(VLOOKUP(TaxYearMM,ITA_Table,'Working Variables-Must Hide'!$F$2,FALSE),"$#,##0.00")&"," -> (i.e., $3,506.67, | I13: than Maximum | K13: prorated on
D14: Contributory | E14: rounded to 2 | F14: Contributory | G14: pension | H14: prorated on | I14: DB Benefit | J14: Benefit | K14: credited
B15: Member Name | C15: Identification | D15: Earnings | E15: decimal places) | F15: Earnings | G15: (OMERS) | H15: credited service) | I15: Entitlement? | J15: Entitlement | K15: service) | L15: =TaxYearMM&" PA" -> 2023 PA
B17: Totals | D17: =SUM(D19:D4018) -> 26000 | E17: =SUM(E19:E4018) -> 7 | F17: =SUM(F19:F4018) -> 44571.42857 | G17: =SUM(G19:G4018) -> 344.5 | H17: =SUM(H19:H4018) -> 2045.5575 | J17: =SUM(J19:J4018) -> 344.5 | K17: =SUM(K19:K4018) -> 350 | L17: =SUM(L19:L4018) -> 2751
A19: 1 | D19: 26000 | E19: 7 | F19: =IF(E19=0,0,D19/(E19/12)) -> 44571.42857 | G19: =(0.01325*MIN(F19,YMPEMM)+0.02*MAX(0,F19-YMPEMM))*E19/12 -> 344.5 | H19: =VLOOKUP(TaxYearMM,ITA_Table,'Working Variables-Must Hide'!$F$2,FALSE)*E19/12 -> 2045.5575 | I19: =IF(G19>H19,"Yes","No") -> No | J19: =(I19="Yes")*H19+(I19="No")*G19 -> 344.5 | K19: =VLOOKUP(TaxYearMM,ITA_Table,'Working Variables-Must Hide'!$E$2,FALSE)*E19/12 -> 350 | L19: =ROUND(MAX(0,MIN(9*J19-K19)),0) -> 2751 | M19: =IF(AND(B19="", C19="",D19="",E19="")=TRUE,"","P") -> P
A20: =A19+1 -> 2 | F20: =IF(E20=0,0,D20/(E20/12)) -> 0 | G20: 0 | H20: =VLOOKUP(TaxYearMM,ITA_Table,'Working Variables-Must Hide'!$F$2,FALSE)*E20/12 -> 0 | I20: =IF(G20>H20,"Yes","No") -> No | J20: =(I20="Yes")*H20+(I20="No")*G20 -> 0 | K20: =VLOOKUP(TaxYearMM,ITA_Table,'Working Variables-Must Hide'!$E$2,FALSE)*E20/12 -> 0 | L20: =ROUND(MAX(0,MIN(9*J20-K20)),0) -> 0 | M20: =IF(AND(B20="", C20="",D20="",E20="")=TRUE,"","P") -> 
A21: =A20+1 -> 3 | F21: =IF(E21=0,0,D21/(E21/12)) -> 0 | G21: =(0.01325*MIN(F21,YMPEMM)+0.02*MAX(0,F21-YMPEMM))*E21/12 -> 0 | H21: =VLOOKUP(TaxYearMM,ITA_Table,'Working Variables-Must Hide'!$F$2,FALSE)*E21/12 -> 0 | I21: =IF(G21>H21,"Yes","No") -> No | J21: =(I21="Yes")*H21+(I21="No")*G21 -> 0 | K21: =VLOOKUP(TaxYearMM,ITA_Table,'Working Variables-Must Hide'!$E$2,FALSE)*E21/12 -> 0 | L21: =ROUND(MAX(0,MIN(9*J21-K21)),0) -> 0
A22: 4 | F22: 0 | G22: 0 | H22: =VLOOKUP(TaxYearMM,ITA_Table,'Working Variables-Must Hide'!$F$2,FALSE)*E22/12 -> 0 | I22: No | J22: 0 | K22: =VLOOKUP(TaxYearMM,ITA_Table,'Working Variables-Must Hide'!$E$2,FALSE)*E22/12 -> 0 | L22: 0
A23: 5 | F23: 0 | G23: 0 | H23: =VLOOKUP(TaxYearMM,ITA_Table,'Working Variables-Must Hide'!$F$2,FALSE)*E23/12 -> 0 | I23: No | J23: 0 | K23: =VLOOKUP(TaxYearMM,ITA_Table,'Working Variables-Must Hide'!$E$2,FALSE)*E23/12 -> 0 | L23: 0
A24: 6 | F24: 0 | G24: 0 | H24: =VLOOKUP(TaxYearMM,ITA_Table,'Working Variables-Must Hide'!$F$2,FALSE)*E24/12 -> 0 | I24: No | J24: 0 | K24: =VLOOKUP(TaxYearMM,ITA_Table,'Working Variables-Must Hide'!$E$2,FALSE)*E24/12 -> 0 | L24: 0
A25: 7 | F25: 0 | G25: 0 | H25: =VLOOKUP(TaxYearMM,ITA_Table,'Working Variables-Must Hide'!$F$2,FALSE)*E25/12 -> 0 | I25: No | J25: 0 | K25: =VLOOKUP(TaxYearMM,ITA_Table,'Working Variables-Must Hide'!$E$2,FALSE)*E25/12 -> 0 | L25: 0
A26: 8 | F26: 0 | G26: 0 | H26: =VLOOKUP(TaxYearMM,ITA_Table,'Working Variables-Must Hide'!$F$2,FALSE)*E26/12 -> 0 | I26: No | J26: 0 | K26: =VLOOKUP(TaxYearMM,ITA_Table,'Working Variables-Must Hide'!$E$2,FALSE)*E26/12 -> 0 | L26: 0
A27: 9 | F27: 0 | G27: 0 | H27: =VLOOKUP(TaxYearMM,ITA_Table,'Working Variables-Must Hide'!$F$2,FALSE)*E27/12 -> 0 | I27: No | J27: 0 | K27: =VLOOKUP(TaxYearMM,ITA_Table,'Working Variables-Must Hide'!$E$2,FALSE)*E27/12 -> 0 | L27: 0
A28: 10 | F28: 0 | G28: 0 | H28: =VLOOKUP(TaxYearMM,ITA_Table,'Working Variables-Must Hide'!$F$2,FALSE)*E28/12 -> 0 | I28: No | J28: 0 | K28: =VLOOKUP(TaxYearMM,ITA_Table,'Working Variables-Must Hide'!$E$2,FALSE)*E28/12 -> 0 | L28: 0
A29: 11 | F29: 0 | G29: 0 | H29: =VLOOKUP(TaxYearMM,ITA_Table,'Working Variables-Must Hide'!$F$2,FALSE)*E29/12 -> 0 | I29: No | J29: 0 | K29: =VLOOKUP(TaxYearMM,ITA_Table,'Working Variables-Must Hide'!$E$2,FALSE)*E29/12 -> 0 | L29: 0
A30: 12 | F30: 0 | G30: 0 | H30: =VLOOKUP(TaxYearMM,ITA_Table,'Working Variables-Must Hide'!$F$2,FALSE)*E30/12 -> 0 | I30: No | J30: 0 | K30: =VLOOKUP(TaxYearMM,ITA_Table,'Working Variables-Must Hide'!$E$2,FALSE)*E30/12 -> 0 | L30: 0
A31: 13 | F31: 0 | G31: 0 | H31: =VLOOKUP(TaxYearMM,ITA_Table,'Working Variables-Must Hide'!$F$2,FALSE)*E31/12 -> 0 | I31: No | J31: 0 | K31: =VLOOKUP(TaxYearMM,ITA_Table,'Working Variables-Must Hide'!$E$2,FALSE)*E31/12 -> 0 | L31: 0
A32: 14 | F32: 0 | G32: 0 | H32: =VLOOKUP(TaxYearMM,ITA_Table,'Working Variables-Must Hide'!$F$2,FALSE)*E32/12 -> 0 | I32: No | J32: 0 | K32: =VLOOKUP(TaxYearMM,ITA_Table,'Working Variables-Must Hide'!$E$2,FALSE)*E32/12 -> 0 | L32: 0
A33: 15 | F33: 0 | G33: 0 | H33: =VLOOKUP(TaxYearMM,ITA_Table,'Working Variables-Must Hide'!$F$2,FALSE)*E33/12 -> 0 | I33: No | J33: 0 | K33: =VLOOKUP(TaxYearMM,ITA_Table,'Working Variables-Must Hide'!$E$2,FALSE)*E33/12 -> 0 | L33: 0
A34: 16 | F34: 0 | G34: 0 | H34: =VLOOKUP(TaxYearMM,ITA_Table,'Working Variables-Must Hide'!$F$2,FALSE)*E34/12 -> 0 | I34: No | J34: 0 | K34: =VLOOKUP(TaxYearMM,ITA_Table,'Working Variables-Must Hide'!$E$2,FALSE)*E34/12 -> 0 | L34: 0
A35: 17 | F35: 0 | G35: 0 | H35: =VLOOKUP(TaxYearMM,ITA_Table,'Working Variables-Must Hide'!$F$2,FALSE)*E35/12 -> 0 | I35: No | J35: 0 | K35: =VLOOKUP(TaxYearMM,ITA_Table,'Working Variables-Must Hide'!$E$2,FALSE)*E35/12 -> 0 | L35: 0
A36: 18 | F36: 0 | G36: 0 | H36: =VLOOKUP(TaxYearMM,ITA_Table,'Working Variables-Must Hide'!$F$2,FALSE)*E36/12 -> 0 | I36: No | J36: 0 | K36: =VLOOKUP(TaxYearMM,ITA_Table,'Working Variables-Must Hide'!$E$2,FALSE)*E36/12 -> 0 | L36: 0
A37: 19 | F37: 0 | G37: 0 | H37: =VLOOKUP(TaxYearMM,ITA_Table,'Working Variables-Must Hide'!$F$2,FALSE)*E37/12 -> 0 | I37: No | J37: 0 | K37: =VLOOKUP(TaxYearMM,ITA_Table,'Working Variables-Must Hide'!$E$2,FALSE)*E37/12 -> 0 | L37: 0
A38: 20 | F38: 0 | G38: 0 | H38: =VLOOKUP(TaxYearMM,ITA_Table,'Working Variables-Must Hide'!$F$2,FALSE)*E38/12 -> 0 | I38: No | J38: 0 | K38: =VLOOKUP(TaxYearMM,ITA_Table,'Working Variables-Must Hide'!$E$2,FALSE)*E38/12 -> 0 | L38: 0
A39: 21 | F39: 0 | G39: 0 | H39: =VLOOKUP(TaxYearMM,ITA_Table,'Working Variables-Must Hide'!$F$2,FALSE)*E39/12 -> 0 | I39: No | J39: 0 | K39: =VLOOKUP(TaxYearMM,ITA_Table,'Working Variables-Must Hide'!$E$2,FALSE)*E39/12 -> 0 | L39: 0
A40: 22 | F40: 0 | G40: 0 | H40: =VLOOKUP(TaxYearMM,ITA_Table,'Working Variables-Must Hide'!$F$2,FALSE)*E40/12 -> 0 | I40: No | J40: 0 | K40: =VLOOKUP(TaxYearMM,ITA_Table,'Working Variables-Must Hide'!$E$2,FALSE)*E40/12 -> 0 | L40: 0
A41: 23 | F41: 0 | G41: 0 | H41: =VLOOKUP(TaxYearMM,ITA_Table,'Working Variables-Must Hide'!$F$2,FALSE)*E41/12 -> 0 | I41: No | J41: 0 | K41: =VLOOKUP(TaxYearMM,ITA_Table,'Working Variables-Must Hide'!$E$2,FALSE)*E41/12 -> 0 | L41: 0
A42: 24 | F42: 0 | G42: 0 | H42: =VLOOKUP(TaxYearMM,ITA_Table,'Working Variables-Must Hide'!$F$2,FALSE)*E42/12 -> 0 | I42: No | J42: 0 | K42: =VLOOKUP(TaxYearMM,ITA_Table,'Working Variables-Must Hide'!$E$2,FALSE)*E42/12 -> 0 | L42: 0
A43: 25 | F43: 0 | G43: 0 | H43: =VLOOKUP(TaxYearMM,ITA_Table,'Working Variables-Must Hide'!$F$2,FALSE)*E43/12 -> 0 | I43: No | J43: 0 | K43: =VLOOKUP(TaxYearMM,ITA_Table,'Working Variables-Must Hide'!$E$2,FALSE)*E43/12 -> 0 | L43: 0
A44: 26 | F44: 0 | G44: 0 | H44: =VLOOKUP(TaxYearMM,ITA_Table,'Working Variables-Must Hide'!$F$2,FALSE)*E44/12 -> 0 | I44: No | J44: 0 | K44: =VLOOKUP(TaxYearMM,ITA_Table,'Working Variables-Must Hide'!$E$2,FALSE)*E44/12 -> 0 | L44: 0
A45: 27 | F45: 0 | G45: 0 | H45: =VLOOKUP(TaxYearMM,ITA_Table,'Working Variables-Must Hide'!$F$2,FALSE)*E45/12 -> 0 | I45: No | J45: 0 | K45: =VLOOKUP(TaxYearMM,ITA_Table,'Working Variables-Must Hide'!$E$2,FALSE)*E45/12 -> 0 | L45: 0
A46: 28 | F46: 0 | G46: 0 | H46: =VLOOKUP(TaxYearMM,ITA_Table,'Working Variables-Must Hide'!$F$2,FALSE)*E46/12 -> 0 | I46: No | J46: 0 | K46: =VLOOKUP(TaxYearMM,ITA_Table,'Working Variables-Must Hide'!$E$2,FALSE)*E46/12 -> 0 | L46: 0
A47: 29 | F47: 0 | G47: 0 | H47: =VLOOKUP(TaxYearMM,ITA_Table,'Working Variables-Must Hide'!$F$2,FALSE)*E47/12 -> 0 | I47: No | J47: 0 | K47: =VLOOKUP(TaxYearMM,ITA_Table,'Working Variables-Must Hide'!$E$2,FALSE)*E47/12 -> 0 | L47: 0
A48: 30 | F48: 0 | G48: 0 | H48: =VLOOKUP(TaxYearMM,ITA_Table,'Working Variables-Must Hide'!$F$2,FALSE)*E48/12 -> 0 | I48: No | J48: 0 | K48: =VLOOKUP(TaxYearMM,ITA_Table,'Working Variables-Must Hide'!$E$2,FALSE)*E48/12 -> 0 | L48: 0
A49: 31 | F49: 0 | G49: 0 | H49: =VLOOKUP(TaxYearMM,ITA_Table,'Working Variables-Must Hide'!$F$2,FALSE)*E49/12 -> 0 | I49: No | J49: 0 | K49: =VLOOKUP(TaxYearMM,ITA_Table,'Working Variables-Must Hide'!$E$2,FALSE)*E49/12 -> 0 | L49: 0
A50: 32 | F50: 0 | G50: 0 | H50: =VLOOKUP(TaxYearMM,ITA_Table,'Working Variables-Must Hide'!$F$2,FALSE)*E50/12 -> 0 | I50: No | J50: 0 | K50: =VLOOKUP(TaxYearMM,ITA_Table,'Working Variables-Must Hide'!$E$2,FALSE)*E50/12 -> 0 | L50: 0
A51: 33 | F51: 0 | G51: 0 | H51: =VLOOKUP(TaxYearMM,ITA_Table,'Working Variables-Must Hide'!$F$2,FALSE)*E51/12 -> 0 | I51: No | J51: 0 | K51: =VLOOKUP(TaxYearMM,ITA_Table,'Working Variables-Must Hide'!$E$2,FALSE)*E51/12 -> 0 | L51: 0
A52: 34 | F52: 0 | G52: 0 | H52: =VLOOKUP(TaxYearMM,ITA_Table,'Working Variables-Must Hide'!$F$2,FALSE)*E52/12 -> 0 | I52: No | J52: 0 | K52: =VLOOKUP(TaxYearMM,ITA_Table,'Working Variables-Must Hide'!$E$2,FALSE)*E52/12 -> 0 | L52: 0
A53: 35 | F53: 0 | G53: 0 | H53: =VLOOKUP(TaxYearMM,ITA_Table,'Working Variables-Must Hide'!$F$2,FALSE)*E53/12 -> 0 | I53: No | J53: 0 | K53: =VLOOKUP(TaxYearMM,ITA_Table,'Working Variables-Must Hide'!$E$2,FALSE)*E53/12 -> 0 | L53: 0
A54: 36 | F54: 0 | G54: 0 | H54: =VLOOKUP(TaxYearMM,ITA_Table,'Working Variables-Must Hide'!$F$2,FALSE)*E54/12 -> 0 | I54: No | J54: 0 | K54: =VLOOKUP(TaxYearMM,ITA_Table,'Working Variables-Must Hide'!$E$2,FALSE)*E54/12 -> 0 | L54: 0
A55: 37 | F55: 0 | G55: 0 | H55: =VLOOKUP(TaxYearMM,ITA_Table,'Working Variables-Must Hide'!$F$2,FALSE)*E55/12 -> 0 | I55: No | J55: 0 | K55: =VLOOKUP(TaxYearMM,ITA_Table,'Working Variables-Must Hide'!$E$2,FALSE)*E55/12 -> 0 | L55: 0
A56: 38 | F56: 0 | G56: 0 | H56: =VLOOKUP(TaxYearMM,ITA_Table,'Working Variables-Must Hide'!$F$2,FALSE)*E56/12 -> 0 | I56: No | J56: 0 | K56: =VLOOKUP(TaxYearMM,ITA_Table,'Working Variables-Must Hide'!$E$2,FALSE)*E56/12 -> 0 | L56: 0
A57: 39 | F57: 0 | G57: 0 | H57: =VLOOKUP(TaxYearMM,ITA_Table,'Working Variables-Must Hide'!$F$2,FALSE)*E57/12 -> 0 | I57: No | J57: 0 | K57: =VLOOKUP(TaxYearMM,ITA_Table,'Working Variables-Must Hide'!$E$2,FALSE)*E57/12 -> 0 | L57: 0
A58: 40 | F58: 0 | G58: 0 | H58: =VLOOKUP(TaxYearMM,ITA_Table,'Working Variables-Must Hide'!$F$2,FALSE)*E58/12 -> 0 | I58: No | J58: 0 | K58: =VLOOKUP(TaxYearMM,ITA_Table,'Working Variables-Must Hide'!$E$2,FALSE)*E58/12 -> 0 | L58: 0
A59: 41 | F59: 0 | G59: 0 | H59: =VLOOKUP(TaxYearMM,ITA_Table,'Working Variables-Must Hide'!$F$2,FALSE)*E59/12 -> 0 | I59: No | J59: 0 | K59: =VLOOKUP(TaxYearMM,ITA_Table,'Working Variables-Must Hide'!$E$2,FALSE)*E59/12 -> 0 | L59: 0
A60: 42 | F60: 0 | G60: 0 | H60: =VLOOKUP(TaxYearMM,ITA_Table,'Working Variables-Must Hide'!$F$2,FALSE)*E60/12 -> 0 | I60: No | J60: 0 | K60: =VLOOKUP(TaxYearMM,ITA_Table,'Working Variables-Must Hide'!$E$2,FALSE)*E60/12 -> 0 | L60: 0
A61: 43 | F61: 0 | G61: 0 | H61: =VLOOKUP(TaxYearMM,ITA_Table,'Working Variables-Must Hide'!$F$2,FALSE)*E61/12 -> 0 | I61: No | J61: 0 | K61: =VLOOKUP(TaxYearMM,ITA_Table,'Working Variables-Must Hide'!$E$2,FALSE)*E61/12 -> 0 | L61: 0
A62: 44 | F62: 0 | G62: 0 | H62: =VLOOKUP(TaxYearMM,ITA_Table,'Working Variables-Must Hide'!$F$2,FALSE)*E62/12 -> 0 | I62: No | J62: 0 | K62: =VLOOKUP(TaxYearMM,ITA_Table,'Working Variables-Must Hide'!$E$2,FALSE)*E62/12 -> 0 | L62: 0
A63: 45 | F63: 0 | G63: 0 | H63: =VLOOKUP(TaxYearMM,ITA_Table,'Working Variables-Must Hide'!$F$2,FALSE)*E63/12 -> 0 | I63: No | J63: 0 | K63: =VLOOKUP(TaxYearMM,ITA_Table,'Working Variables-Must Hide'!$E$2,FALSE)*E63/12 -> 0 | L63: 0
A64: 46 | F64: 0 | G64: 0 | H64: =VLOOKUP(TaxYearMM,ITA_Table,'Working Variables-Must Hide'!$F$2,FALSE)*E64/12 -> 0 | I64: No | J64: 0 | K64: =VLOOKUP(TaxYearMM,ITA_Table,'Working Variables-Must Hide'!$E$2,FALSE)*E64/12 -> 0 | L64: 0
A65: 47 | F65: 0 | G65: 0 | H65: =VLOOKUP(TaxYearMM,ITA_Table,'Working Variables-Must Hide'!$F$2,FALSE)*E65/12 -> 0 | I65: No | J65: 0 | K65: =VLOOKUP(TaxYearMM,ITA_Table,'Working Variables-Must Hide'!$E$2,FALSE)*E65/12 -> 0 | L65: 0
A66: 48 | F66: 0 | G66: 0 | H66: =VLOOKUP(TaxYearMM,ITA_Table,'Working Variables-Must Hide'!$F$2,FALSE)*E66/12 -> 0 | I66: No | J66: 0 | K66: =VLOOKUP(TaxYearMM,ITA_Table,'Working Variables-Must Hide'!$E$2,FALSE)*E66/12 -> 0 | L66: 0
A67: 49 | F67: 0 | G67: 0 | H67: =VLOOKUP(TaxYearMM,ITA_Table,'Working Variables-Must Hide'!$F$2,FALSE)*E67/12 -> 0 | I67: No | J67: 0 | K67: =VLOOKUP(TaxYearMM,ITA_Table,'Working Variables-Must Hide'!$E$2,FALSE)*E67/12 -> 0 | L67: 0
A68: 50 | F68: 0 | G68: 0 | H68: =VLOOKUP(TaxYearMM,ITA_Table,'Working Variables-Must Hide'!$F$2,FALSE)*E68/12 -> 0 | I68: No | J68: 0 | K68: =VLOOKUP(TaxYearMM,ITA_Table,'Working Variables-Must Hide'!$E$2,FALSE)*E68/12 -> 0 | L68: 0
A69: 51 | F69: 0 | G69: 0 | H69: =VLOOKUP(TaxYearMM,ITA_Table,'Working Variables-Must Hide'!$F$2,FALSE)*E69/12 -> 0 | I69: No | J69: 0 | K69: =VLOOKUP(TaxYearMM,ITA_Table,'Working Variables-Must Hide'!$E$2,FALSE)*E69/12 -> 0 | L69: 0
A70: 52 | F70: 0 | G70: 0 | H70: =VLOOKUP(TaxYearMM,ITA_Table,'Working Variables-Must Hide'!$F$2,FALSE)*E70/12 -> 0 | I70: No | J70: 0 | K70: =VLOOKUP(TaxYearMM,ITA_Table,'Working Variables-Must Hide'!$E$2,FALSE)*E70/12 -> 0 | L70: 0
A71: 53 | F71: 0 | G71: 0 | H71: =VLOOKUP(TaxYearMM,ITA_Table,'Working Variables-Must Hide'!$F$2,FALSE)*E71/12 -> 0 | I71: No | J71: 0 | K71: =VLOOKUP(TaxYearMM,ITA_Table,'Working Variables-Must Hide'!$E$2,FALSE)*E71/12 -> 0 | L71: 0
A72: 54 | F72: 0 | G72: 0 | H72: =VLOOKUP(TaxYearMM,ITA_Table,'Working Variables-Must Hide'!$F$2,FALSE)*E72/12 -> 0 | I72: No | J72: 0 | K72: =VLOOKUP(TaxYearMM,ITA_Table,'Working Variables-Must Hide'!$E$2,FALSE)*E72/12 -> 0 | L72: 0
A73: 55 | F73: 0 | G73: 0 | H73: =VLOOKUP(TaxYearMM,ITA_Table,'Working Variables-Must Hide'!$F$2,FALSE)*E73/12 -> 0 | I73: No | J73: 0 | K73: =VLOOKUP(TaxYearMM,ITA_Table,'Working Variables-Must Hide'!$E$2,FALSE)*E73/12 -> 0 | L73: 0
A74: 56 | F74: 0 | G74: 0 | H74: =VLOOKUP(TaxYearMM,ITA_Table,'Working Variables-Must Hide'!$F$2,FALSE)*E74/12 -> 0 | I74: No | J74: 0 | K74: =VLOOKUP(TaxYearMM,ITA_Table,'Working Variables-Must Hide'!$E$2,FALSE)*E74/12 -> 0 | L74: 0
A75: 57 | F75: 0 | G75: 0 | H75: =VLOOKUP(TaxYearMM,ITA_Table,'Working Variables-Must Hide'!$F$2,FALSE)*E75/12 -> 0 | I75: No | J75: 0 | K75: =VLOOKUP(TaxYearMM,ITA_Table,'Working Variables-Must Hide'!$E$2,FALSE)*E75/12 -> 0 | L75: 0
A76: 58 | F76: 0 | G76: 0 | H76: =VLOOKUP(TaxYearMM,ITA_Table,'Working Variables-Must Hide'!$F$2,FALSE)*E76/12 -> 0 | I76: No | J76: 0 | K76: =VLOOKUP(TaxYearMM,ITA_Table,'Working Variables-Must Hide'!$E$2,FALSE)*E76/12 -> 0 | L76: 0
A77: 59 | F77: 0 | G77: 0 | H77: =VLOOKUP(TaxYearMM,ITA_Table,'Working Variables-Must Hide'!$F$2,FALSE)*E77/12 -> 0 | I77: No | J77: 0 | K77: =VLOOKUP(TaxYearMM,ITA_Table,'Working Variables-Must Hide'!$E$2,FALSE)*E77/12 -> 0 | L77: 0
A78: 60 | F78: 0 | G78: 0 | H78: =VLOOKUP(TaxYearMM,ITA_Table,'Working Variables-Must Hide'!$F$2,FALSE)*E78/12 -> 0 | I78: No | J78: 0 | K78: =VLOOKUP(TaxYearMM,ITA_Table,'Working Variables-Must Hide'!$E$2,FALSE)*E78/12 -> 0 | L78: 0
A79: 61 | F79: 0 | G79: 0 | H79: =VLOOKUP(TaxYearMM,ITA_Table,'Working Variables-Must Hide'!$F$2,FALSE)*E79/12 -> 0 | I79: No | J79: 0 | K79: =VLOOKUP(TaxYearMM,ITA_Table,'Working Variables-Must Hide'!$E$2,FALSE)*E79/12 -> 0 | L79: 0
A80: 62 | F80: 0 | G80: 0 | H80: =VLOOKUP(TaxYearMM,ITA_Table,'Working Variables-Must Hide'!$F$2,FALSE)*E80/12 -> 0 | I80: No | J80: 0 | K80: =VLOOKUP(TaxYearMM,ITA_Table,'Working Variables-Must Hide'!$E$2,FALSE)*E80/12 -> 0 | L80: 0
A81: 63 | F81: 0 | G81: 0 | H81: =VLOOKUP(TaxYearMM,ITA_Table,'Working Variables-Must Hide'!$F$2,FALSE)*E81/12 -> 0 | I81: No | J81: 0 | K81: =VLOOKUP(TaxYearMM,ITA_Table,'Working Variables-Must Hide'!$E$2,FALSE)*E81/12 -> 0 | L81: 0
A82: 64 | F82: 0 | G82: 0 | H82: =VLOOKUP(TaxYearMM,ITA_Table,'Working Variables-Must Hide'!$F$2,FALSE)*E82/12 -> 0 | I82: No | J82: 0 | K82: =VLOOKUP(TaxYearMM,ITA_Table,'Working Variables-Must Hide'!$E$2,FALSE)*E82/12 -> 0 | L82: 0
A83: 65 | F83: 0 | G83: 0 | H83: =VLOOKUP(TaxYearMM,ITA_Table,'Working Variables-Must Hide'!$F$2,FALSE)*E83/12 -> 0 | I83: No | J83: 0 | K83: =VLOOKUP(TaxYearMM,ITA_Table,'Working Variables-Must Hide'!$E$2,FALSE)*E83/12 -> 0 | L83: 0
A84: 66 | F84: 0 | G84: 0 | H84: =VLOOKUP(TaxYearMM,ITA_Table,'Working Variables-Must Hide'!$F$2,FALSE)*E84/12 -> 0 | I84: No | J84: 0 | K84: =VLOOKUP(TaxYearMM,ITA_Table,'Working Variables-Must Hide'!$E$2,FALSE)*E84/12 -> 0 | L84: 0 | M84: =IF(AND(B84="", C84="",D84="",E84="")=TRUE,"","P") -> 
A85: =A84+1 -> 67 | F85: =IF(E85=0,0,D85/(E85/12)) -> 0 | G85: =(0.01325*MIN(F85,YMPEMM)+0.02*MAX(0,F85-YMPEMM))*E85/12 -> 0 | H85: =VLOOKUP(TaxYearMM,ITA_Table,'Working Variables-Must Hide'!$F$2,FALSE)*E85/12 -> 0 | I85: =IF(G85>H85,"Yes","No") -> No | J85: =(I85="Yes")*H85+(I85="No")*G85 -> 0 | K85: =VLOOKUP(TaxYearMM,ITA_Table,'Working Variables-Must Hide'!$E$2,FALSE)*E85/12 -> 0 | L85: =ROUND(MAX(0,MIN(9*J85-K85)),0) -> 0
A86: 68 | F86: 0 | G86: 0 | H86: =VLOOKUP(TaxYearMM,ITA_Table,'Working Variables-Must Hide'!$F$2,FALSE)*E86/12 -> 0 | I86: No | J86: 0 | K86: =VLOOKUP(TaxYearMM,ITA_Table,'Working Variables-Must Hide'!$E$2,FALSE)*E86/12 -> 0 | L86: 0
A87: 69 | F87: 0 | G87: 0 | H87: =VLOOKUP(TaxYearMM,ITA_Table,'Working Variables-Must Hide'!$F$2,FALSE)*E87/12 -> 0 | I87: No | J87: 0 | K87: =VLOOKUP(TaxYearMM,ITA_Table,'Working Variables-Must Hide'!$E$2,FALSE)*E87/12 -> 0 | L87: 0
A88: 70 | F88: 0 | G88: 0 | H88: =VLOOKUP(TaxYearMM,ITA_Table,'Working Variables-Must Hide'!$F$2,FALSE)*E88/12 -> 0 | I88: No | J88: 0 | K88: =VLOOKUP(TaxYearMM,ITA_Table,'Working Variables-Must Hide'!$E$2,FALSE)*E88/12 -> 0 | L88: 0
A89: 71 | F89: 0 | G89: 0 | H89: =VLOOKUP(TaxYearMM,ITA_Table,'Working Variables-Must Hide'!$F$2,FALSE)*E89/12 -> 0 | I89: No | J89: 0 | K89: =VLOOKUP(TaxYearMM,ITA_Table,'Working Variables-Must Hide'!$E$2,FALSE)*E89/12 -> 0 | L89: 0
A90: 72 | F90: 0 | G90: 0 | H90: =VLOOKUP(TaxYearMM,ITA_Table,'Working Variables-Must Hide'!$F$2,FALSE)*E90/12 -> 0 | I90: No | J90: 0 | K90: =VLOOKUP(TaxYearMM,ITA_Table,'Working Variables-Must Hide'!$E$2,FALSE)*E90/12 -> 0 | L90: 0
A91: 73 | F91: 0 | G91: 0 | H91: =VLOOKUP(TaxYearMM,ITA_Table,'Working Variables-Must Hide'!$F$2,FALSE)*E91/12 -> 0 | I91: No | J91: 0 | K91: =VLOOKUP(TaxYearMM,ITA_Table,'Working Variables-Must Hide'!$E$2,FALSE)*E91/12 -> 0 | L91: 0
A92: 74 | F92: 0 | G92: 0 | H92: =VLOOKUP(TaxYearMM,ITA_Table,'Working Variables-Must Hide'!$F$2,FALSE)*E92/12 -> 0 | I92: No | J92: 0 | K92: =VLOOKUP(TaxYearMM,ITA_Table,'Working Variables-Must Hide'!$E$2,FALSE)*E92/12 -> 0 | L92: 0
A93: 75 | F93: 0 | G93: 0 | H93: =VLOOKUP(TaxYearMM,ITA_Table,'Working Variables-Must Hide'!$F$2,FALSE)*E93/12 -> 0 | I93: No | J93: 0 | K93: =VLOOKUP(TaxYearMM,ITA_Table,'Working Variables-Must Hide'!$E$2,FALSE)*E93/12 -> 0 | L93: 0
A94: 76 | F94: 0 | G94: 0 | H94: =VLOOKUP(TaxYearMM,ITA_Table,'Working Variables-Must Hide'!$F$2,FALSE)*E94/12 -> 0 | I94: No | J94: 0 | K94: =VLOOKUP(TaxYearMM,ITA_Table,'Working Variables-Must Hide'!$E$2,FALSE)*E94/12 -> 0 | L94: 0
A95: 77 | F95: 0 | G95: 0 | H95: =VLOOKUP(TaxYearMM,ITA_Table,'Working Variables-Must Hide'!$F$2,FALSE)*E95/12 -> 0 | I95: No | J95: 0 | K95: =VLOOKUP(TaxYearMM,ITA_Table,'Working Variables-Must Hide'!$E$2,FALSE)*E95/12 -> 0 | L95: 0
A96: 78 | F96: 0 | G96: 0 | H96: =VLOOKUP(TaxYearMM,ITA_Table,'Working Variables-Must Hide'!$F$2,FALSE)*E96/12 -> 0 | I96: No | J96: 0 | K96: =VLOOKUP(TaxYearMM,ITA_Table,'Working Variables-Must Hide'!$E$2,FALSE)*E96/12 -> 0 | L96: 0
A97: 79 | F97: 0 | G97: 0 | H97: =VLOOKUP(TaxYearMM,ITA_Table,'Working Variables-Must Hide'!$F$2,FALSE)*E97/12 -> 0 | I97: No | J97: 0 | K97: =VLOOKUP(TaxYearMM,ITA_Table,'Working Variables-Must Hide'!$E$2,FALSE)*E97/12 -> 0 | L97: 0
A98: 80 | F98: 0 | G98: 0 | H98: =VLOOKUP(TaxYearMM,ITA_Table,'Working Variables-Must Hide'!$F$2,FALSE)*E98/12 -> 0 | I98: No | J98: 0 | K98: =VLOOKUP(TaxYearMM,ITA_Table,'Working Variables-Must Hide'!$E$2,FALSE)*E98/12 -> 0 | L98: 0
A99: 81 | F99: 0 | G99: 0 | H99: =VLOOKUP(TaxYearMM,ITA_Table,'Working Variables-Must Hide'!$F$2,FALSE)*E99/12 -> 0 | I99: No | J99: 0 | K99: =VLOOKUP(TaxYearMM,ITA_Table,'Working Variables-Must Hide'!$E$2,FALSE)*E99/12 -> 0 | L99: 0
A100: 82 | F100: 0 | G100: 0 | H100: =VLOOKUP(TaxYearMM,ITA_Table,'Working Variables-Must Hide'!$F$2,FALSE)*E100/12 -> 0 | I100: No | J100: 0 | K100: =VLOOKUP(TaxYearMM,ITA_Table,'Working Variables-Must Hide'!$E$2,FALSE)*E100/12 -> 0 | L100: 0
A101: 83 | F101: 0 | G101: 0 | H101: =VLOOKUP(TaxYearMM,ITA_Table,'Working Variables-Must Hide'!$F$2,FALSE)*E101/12 -> 0 | I101: No | J101: 0 | K101: =VLOOKUP(TaxYearMM,ITA_Table,'Working Variables-Must Hide'!$E$2,FALSE)*E101/12 -> 0 | L101: 0
A102: 84 | F102: 0 | G102: 0 | H102: =VLOOKUP(TaxYearMM,ITA_Table,'Working Variables-Must Hide'!$F$2,FALSE)*E102/12 -> 0 | I102: No | J102: 0 | K102: =VLOOKUP(TaxYearMM,ITA_Table,'Working Variables-Must Hide'!$E$2,FALSE)*E102/12 -> 0 | L102: 0
A103: 85 | F103: 0 | G103: 0 | H103: =VLOOKUP(TaxYearMM,ITA_Table,'Working Variables-Must Hide'!$F$2,FALSE)*E103/12 -> 0 | I103: No | J103: 0 | K103: =VLOOKUP(TaxYearMM,ITA_Table,'Working Variables-Must Hide'!$E$2,FALSE)*E103/12 -> 0 | L103: 0
A104: 86 | F104: 0 | G104: 0 | H104: =VLOOKUP(TaxYearMM,ITA_Table,'Working Variables-Must Hide'!$F$2,FALSE)*E104/12 -> 0 | I104: No | J104: 0 | K104: =VLOOKUP(TaxYearMM,ITA_Table,'Working Variables-Must Hide'!$E$2,FALSE)*E104/12 -> 0 | L104: 0
A105: 87 | F105: 0 | G105: 0 | H105: =VLOOKUP(TaxYearMM,ITA_Table,'Working Variables-Must Hide'!$F$2,FALSE)*E105/12 -> 0 | I105: No | J105: 0 | K105: =VLOOKUP(TaxYearMM,ITA_Table,'Working Variables-Must Hide'!$E$2,FALSE)*E105/12 -> 0 | L105: 0
A106: 88 | F106: 0 | G106: 0 | H106: =VLOOKUP(TaxYearMM,ITA_Table,'Working Variables-Must Hide'!$F$2,FALSE)*E106/12 -> 0 | I106: No | J106: 0 | K106: =VLOOKUP(TaxYearMM,ITA_Table,'Working Variables-Must Hide'!$E$2,FALSE)*E106/12 -> 0 | L106: 0
A107: 89 | F107: 0 | G107: 0 | H107: =VLOOKUP(TaxYearMM,ITA_Table,'Working Variables-Must Hide'!$F$2,FALSE)*E107/12 -> 0 | I107: No | J107: 0 | K107: =VLOOKUP(TaxYearMM,ITA_Table,'Working Variables-Must Hide'!$E$2,FALSE)*E107/12 -> 0 | L107: 0
A108: 90 | F108: 0 | G108: 0 | H108: =VLOOKUP(TaxYearMM,ITA_Table,'Working Variables-Must Hide'!$F$2,FALSE)*E108/12 -> 0 | I108: No | J108: 0 | K108: =VLOOKUP(TaxYearMM,ITA_Table,'Working Variables-Must Hide'!$E$2,FALSE)*E108/12 -> 0 | L108: 0
A109: 91 | F109: 0 | G109: 0 | H109: =VLOOKUP(TaxYearMM,ITA_Table,'Working Variables-Must Hide'!$F$2,FALSE)*E109/12 -> 0 | I109: No | J109: 0 | K109: =VLOOKUP(TaxYearMM,ITA_Table,'Working Variables-Must Hide'!$E$2,FALSE)*E109/12 -> 0 | L109: 0
A110: 92 | F110: 0 | G110: 0 | H110: =VLOOKUP(TaxYearMM,ITA_Table,'Working Variables-Must Hide'!$F$2,FALSE)*E110/12 -> 0 | I110: No | J110: 0 | K110: =VLOOKUP(TaxYearMM,ITA_Table,'Working Variables-Must Hide'!$E$2,FALSE)*E110/12 -> 0 | L110: 0
A111: 93 | F111: 0 | G111: 0 | H111: =VLOOKUP(TaxYearMM,ITA_Table,'Working Variables-Must Hide'!$F$2,FALSE)*E111/12 -> 0 | I111: No | J111: 0 | K111: =VLOOKUP(TaxYearMM,ITA_Table,'Working Variables-Must Hide'!$E$2,FALSE)*E111/12 -> 0 | L111: 0
A112: 94 | F112: 0 | G112: 0 | H112: =VLOOKUP(TaxYearMM,ITA_Table,'Working Variables-Must Hide'!$F$2,FALSE)*E112/12 -> 0 | I112: No | J112: 0 | K112: =VLOOKUP(TaxYearMM,ITA_Table,'Working Variables-Must Hide'!$E$2,FALSE)*E112/12 -> 0 | L112: 0
A113: 95 | F113: 0 | G113: 0 | H113: =VLOOKUP(TaxYearMM,ITA_Table,'Working Variables-Must Hide'!$F$2,FALSE)*E113/12 -> 0 | I113: No | J113: 0 | K113: =VLOOKUP(TaxYearMM,ITA_Table,'Working Variables-Must Hide'!$E$2,FALSE)*E113/12 -> 0 | L113: 0
A114: 96 | F114: 0 | G114: 0 | H114: =VLOOKUP(TaxYearMM,ITA_Table,'Working Variables-Must Hide'!$F$2,FALSE)*E114/12 -> 0 | I114: No | J114: 0 | K114: =VLOOKUP(TaxYearMM,ITA_Table,'Working Variables-Must Hide'!$E$2,FALSE)*E114/12 -> 0 | L114: 0
A115: 97 | F115: 0 | G115: 0 | H115: =VLOOKUP(TaxYearMM,ITA_Table,'Working Variables-Must Hide'!$F$2,FALSE)*E115/12 -> 0 | I115: No | J115: 0 | K115: =VLOOKUP(TaxYearMM,ITA_Table,'Working Variables-Must Hide'!$E$2,FALSE)*E115/12 -> 0 | L115: 0
A116: 98 | F116: 0 | G116: 0 | H116: =VLOOKUP(TaxYearMM,ITA_Table,'Working Variables-Must Hide'!$F$2,FALSE)*E116/12 -> 0 | I116: No | J116: 0 | K116: =VLOOKUP(TaxYearMM,ITA_Table,'Working Variables-Must Hide'!$E$2,FALSE)*E116/12 -> 0 | L116: 0
A117: 99 | F117: 0 | G117: 0 | H117: =VLOOKUP(TaxYearMM,ITA_Table,'Working Variables-Must Hide'!$F$2,FALSE)*E117/12 -> 0 | I117: No | J117: 0 | K117: =VLOOKUP(TaxYearMM,ITA_Table,'Working Variables-Must Hide'!$E$2,FALSE)*E117/12 -> 0 | L117: 0
A118: 100 | F118: 0 | G118: 0 | H118: =VLOOKUP(TaxYearMM,ITA_Table,'Working Variables-Must Hide'!$F$2,FALSE)*E118/12 -> 0 | I118: No | J118: 0 | K118: =VLOOKUP(TaxYearMM,ITA_Table,'Working Variables-Must Hide'!$E$2,FALSE)*E118/12 -> 0 | L118: 0
A119: 101 | F119: 0 | G119: 0 | H119: =VLOOKUP(TaxYearMM,ITA_Table,'Working Variables-Must Hide'!$F$2,FALSE)*E119/12 -> 0 | I119: No | J119: 0 | K119: =VLOOKUP(TaxYearMM,ITA_Table,'Working Variables-Must Hide'!$E$2,FALSE)*E119/12 -> 0 | L119: 0
A120: 102 | F120: 0 | G120: 0 | H120: =VLOOKUP(TaxYearMM,ITA_Table,'Working Variables-Must Hide'!$F$2,FALSE)*E120/12 -> 0 | I120: No | J120: 0 | K120: =VLOOKUP(TaxYearMM,ITA_Table,'Working Variables-Must Hide'!$E$2,FALSE)*E120/12 -> 0 | L120: 0
A121: 103 | F121: 0 | G121: 0 | H121: =VLOOKUP(TaxYearMM,ITA_Table,'Working Variables-Must Hide'!$F$2,FALSE)*E121/12 -> 0 | I121: No | J121: 0 | K121: =VLOOKUP(TaxYearMM,ITA_Table,'Working Variables-Must Hide'!$E$2,FALSE)*E121/12 -> 0 | L121: 0
A122: 104 | F122: 0 | G122: 0 | H122: =VLOOKUP(TaxYearMM,ITA_Table,'Working Variables-Must Hide'!$F$2,FALSE)*E122/12 -> 0 | I122: No | J122: 0 | K122: =VLOOKUP(TaxYearMM,ITA_Table,'Working Variables-Must Hide'!$E$2,FALSE)*E122/12 -> 0 | L122: 0
A123: 105 | F123: 0 | G123: 0 | H123: =VLOOKUP(TaxYearMM,ITA_Table,'Working Variables-Must Hide'!$F$2,FALSE)*E123/12 -> 0 | I123: No | J123: 0 | K123: =VLOOKUP(TaxYearMM,ITA_Table,'Working Variables-Must Hide'!$E$2,FALSE)*E123/12 -> 0 | L123: 0
A124: 106 | F124: 0 | G124: 0 | H124: =VLOOKUP(TaxYearMM,ITA_Table,'Working Variables-Must Hide'!$F$2,FALSE)*E124/12 -> 0 | I124: No | J124: 0 | K124: =VLOOKUP(TaxYearMM,ITA_Table,'Working Variables-Must Hide'!$E$2,FALSE)*E124/12 -> 0 | L124: 0
A125: 107 | F125: 0 | G125: 0 | H125: =VLOOKUP(TaxYearMM,ITA_Table,'Working Variables-Must Hide'!$F$2,FALSE)*E125/12 -> 0 | I125: No | J125: 0 | K125: =VLOOKUP(TaxYearMM,ITA_Table,'Working Variables-Must Hide'!$E$2,FALSE)*E125/12 -> 0 | L125: 0
A126: 108 | F126: 0 | G126: 0 | H126: =VLOOKUP(TaxYearMM,ITA_Table,'Working Variables-Must Hide'!$F$2,FALSE)*E126/12 -> 0 | I126: No | J126: 0 | K126: =VLOOKUP(TaxYearMM,ITA_Table,'Working Variables-Must Hide'!$E$2,FALSE)*E126/12 -> 0 | L126: 0
A127: 109 | F127: 0 | G127: 0 | H127: =VLOOKUP(TaxYearMM,ITA_Table,'Working Variables-Must Hide'!$F$2,FALSE)*E127/12 -> 0 | I127: No | J127: 0 | K127: =VLOOKUP(TaxYearMM,ITA_Table,'Working Variables-Must Hide'!$E$2,FALSE)*E127/12 -> 0 | L127: 0
A128: 110 | F128: 0 | G128: 0 | H128: =VLOOKUP(TaxYearMM,ITA_Table,'Working Variables-Must Hide'!$F$2,FALSE)*E128/12 -> 0 | I128: No | J128: 0 | K128: =VLOOKUP(TaxYearMM,ITA_Table,'Working Variables-Must Hide'!$E$2,FALSE)*E128/12 -> 0 | L128: 0
A129: 111 | F129: 0 | G129: 0 | H129: =VLOOKUP(TaxYearMM,ITA_Table,'Working Variables-Must Hide'!$F$2,FALSE)*E129/12 -> 0 | I129: No | J129: 0 | K129: =VLOOKUP(TaxYearMM,ITA_Table,'Working Variables-Must Hide'!$E$2,FALSE)*E129/12 -> 0 | L129: 0
A130: 112 | F130: 0 | G130: 0 | H130: =VLOOKUP(TaxYearMM,ITA_Table,'Working Variables-Must Hide'!$F$2,FALSE)*E130/12 -> 0 | I130: No | J130: 0 | K130: =VLOOKUP(TaxYearMM,ITA_Table,'Working Variables-Must Hide'!$E$2,FALSE)*E130/12 -> 0 | L130: 0
A131: 113 | F131: 0 | G131: 0 | H131: =VLOOKUP(TaxYearMM,ITA_Table,'Working Variables-Must Hide'!$F$2,FALSE)*E131/12 -> 0 | I131: No | J131: 0 | K131: =VLOOKUP(TaxYearMM,ITA_Table,'Working Variables-Must Hide'!$E$2,FALSE)*E131/12 -> 0 | L131: 0
A132: 114 | F132: 0 | G132: 0 | H132: =VLOOKUP(TaxYearMM,ITA_Table,'Working Variables-Must Hide'!$F$2,FALSE)*E132/12 -> 0 | I132: No | J132: 0 | K132: =VLOOKUP(TaxYearMM,ITA_Table,'Working Variables-Must Hide'!$E$2,FALSE)*E132/12 -> 0 | L132: 0
A133: 115 | F133: 0 | G133: 0 | H133: =VLOOKUP(TaxYearMM,ITA_Table,'Working Variables-Must Hide'!$F$2,FALSE)*E133/12 -> 0 | I133: No | J133: 0 | K133: =VLOOKUP(TaxYearMM,ITA_Table,'Working Variables-Must Hide'!$E$2,FALSE)*E133/12 -> 0 | L133: 0
A134: 116 | F134: 0 | G134: 0 | H134: =VLOOKUP(TaxYearMM,ITA_Table,'Working Variables-Must Hide'!$F$2,FALSE)*E134/12 -> 0 | I134: No | J134: 0 | K134: =VLOOKUP(TaxYearMM,ITA_Table,'Working Variables-Must Hide'!$E$2,FALSE)*E134/12 -> 0 | L134: 0
A135: 117 | F135: 0 | G135: 0 | H135: =VLOOKUP(TaxYearMM,ITA_Table,'Working Variables-Must Hide'!$F$2,FALSE)*E135/12 -> 0 | I135: No | J135: 0 | K135: =VLOOKUP(TaxYearMM,ITA_Table,'Working Variables-Must Hide'!$E$2,FALSE)*E135/12 -> 0 | L135: 0
A136: 118 | F136: 0 | G136: 0 | H136: =VLOOKUP(TaxYearMM,ITA_Table,'Working Variables-Must Hide'!$F$2,FALSE)*E136/12 -> 0 | I136: No | J136: 0 | K136: =VLOOKUP(TaxYearMM,ITA_Table,'Working Variables-Must Hide'!$E$2,FALSE)*E136/12 -> 0 | L136: 0
A137: 119 | F137: 0 | G137: 0 | H137: =VLOOKUP(TaxYearMM,ITA_Table,'Working Variables-Must Hide'!$F$2,FALSE)*E137/12 -> 0 | I137: No | J137: 0 | K137: =VLOOKUP(TaxYearMM,ITA_Table,'Working Variables-Must Hide'!$E$2,FALSE)*E137/12 -> 0 | L137: 0
A138: 120 | F138: 0 | G138: 0 | H138: =VLOOKUP(TaxYearMM,ITA_Table,'Working Variables-Must Hide'!$F$2,FALSE)*E138/12 -> 0 | I138: No | J138: 0 | K138: =VLOOKUP(TaxYearMM,ITA_Table,'Working Variables-Must Hide'!$E$2,FALSE)*E138/12 -> 0 | L138: 0
A139: 121 | F139: 0 | G139: 0 | H139: =VLOOKUP(TaxYearMM,ITA_Table,'Working Variables-Must Hide'!$F$2,FALSE)*E139/12 -> 0 | I139: No | J139: 0 | K139: =VLOOKUP(TaxYearMM,ITA_Table,'Working Variables-Must Hide'!$E$2,FALSE)*E139/12 -> 0 | L139: 0
A140: 122 | F140: 0 | G140: 0 | H140: =VLOOKUP(TaxYearMM,ITA_Table,'Working Variables-Must Hide'!$F$2,FALSE)*E140/12 -> 0 | I140: No | J140: 0 | K140: =VLOOKUP(TaxYearMM,ITA_Table,'Working Variables-Must Hide'!$E$2,FALSE)*E140/12 -> 0 | L140: 0
A141: 123 | F141: 0 | G141: 0 | H141: =VLOOKUP(TaxYearMM,ITA_Table,'Working Variables-Must Hide'!$F$2,FALSE)*E141/12 -> 0 | I141: No | J141: 0 | K141: =VLOOKUP(TaxYearMM,ITA_Table,'Working Variables-Must Hide'!$E$2,FALSE)*E141/12 -> 0 | L141: 0
A142: 124 | F142: 0 | G142: 0 | H142: =VLOOKUP(TaxYearMM,ITA_Table,'Working Variables-Must Hide'!$F$2,FALSE)*E142/12 -> 0 | I142: No | J142: 0 | K142: =VLOOKUP(TaxYearMM,ITA_Table,'Working Variables-Must Hide'!$E$2,FALSE)*E142/12 -> 0 | L142: 0
A143: 125 | F143: 0 | G143: 0 | H143: =VLOOKUP(TaxYearMM,ITA_Table,'Working Variables-Must Hide'!$F$2,FALSE)*E143/12 -> 0 | I143: No | J143: 0 | K143: =VLOOKUP(TaxYearMM,ITA_Table,'Working Variables-Must Hide'!$E$2,FALSE)*E143/12 -> 0 | L143: 0
A144: 126 | F144: 0 | G144: 0 | H144: =VLOOKUP(TaxYearMM,ITA_Table,'Working Variables-Must Hide'!$F$2,FALSE)*E144/12 -> 0 | I144: No | J144: 0 | K144: =VLOOKUP(TaxYearMM,ITA_Table,'Working Variables-Must Hide'!$E$2,FALSE)*E144/12 -> 0 | L144: 0
A145: 127 | F145: 0 | G145: 0 | H145: =VLOOKUP(TaxYearMM,ITA_Table,'Working Variables-Must Hide'!$F$2,FALSE)*E145/12 -> 0 | I145: No | J145: 0 | K145: =VLOOKUP(TaxYearMM,ITA_Table,'Working Variables-Must Hide'!$E$2,FALSE)*E145/12 -> 0 | L145: 0
A146: 128 | F146: 0 | G146: 0 | H146: =VLOOKUP(TaxYearMM,ITA_Table,'Working Variables-Must Hide'!$F$2,FALSE)*E146/12 -> 0 | I146: No | J146: 0 | K146: =VLOOKUP(TaxYearMM,ITA_Table,'Working Variables-Must Hide'!$E$2,FALSE)*E146/12 -> 0 | L146: 0
A147: 129 | F147: 0 | G147: 0 | H147: =VLOOKUP(TaxYearMM,ITA_Table,'Working Variables-Must Hide'!$F$2,FALSE)*E147/12 -> 0 | I147: No | J147: 0 | K147: =VLOOKUP(TaxYearMM,ITA_Table,'Working Variables-Must Hide'!$E$2,FALSE)*E147/12 -> 0 | L147: 0
A148: 130 | F148: 0 | G148: 0 | H148: =VLOOKUP(TaxYearMM,ITA_Table,'Working Variables-Must Hide'!$F$2,FALSE)*E148/12 -> 0 | I148: No | J148: 0 | K148: =VLOOKUP(TaxYearMM,ITA_Table,'Working Variables-Must Hide'!$E$2,FALSE)*E148/12 -> 0 | L148: 0 | M148: =IF(AND(B148="", C148="",D148="",E148="")=TRUE,"","P") -> 
A149: =A148+1 -> 131 | F149: =IF(E149=0,0,D149/(E149/12)) -> 0 | G149: =(0.01325*MIN(F149,YMPEMM)+0.02*MAX(0,F149-YMPEMM))*E149/12 -> 0 | H149: =VLOOKUP(TaxYearMM,ITA_Table,'Working Variables-Must Hide'!$F$2,FALSE)*E149/12 -> 0 | I149: =IF(G149>H149,"Yes","No") -> No | J149: =(I149="Yes")*H149+(I149="No")*G149 -> 0 | K149: =VLOOKUP(TaxYearMM,ITA_Table,'Working Variables-Must Hide'!$E$2,FALSE)*E149/12 -> 0 | L149: =ROUND(MAX(0,MIN(9*J149-K149)),0) -> 0
A150: 132 | F150: 0 | G150: 0 | H150: =VLOOKUP(TaxYearMM,ITA_Table,'Working Variables-Must Hide'!$F$2,FALSE)*E150/12 -> 0 | I150: No | J150: 0 | K150: =VLOOKUP(TaxYearMM,ITA_Table,'Working Variables-Must Hide'!$E$2,FALSE)*E150/12 -> 0 | L150: 0
A151: 133 | F151: 0 | G151: 0 | H151: =VLOOKUP(TaxYearMM,ITA_Table,'Working Variables-Must Hide'!$F$2,FALSE)*E151/12 -> 0 | I151: No | J151: 0 | K151: =VLOOKUP(TaxYearMM,ITA_Table,'Working Variables-Must Hide'!$E$2,FALSE)*E151/12 -> 0 | L151: 0
A152: 134 | F152: 0 | G152: 0 | H152: =VLOOKUP(TaxYearMM,ITA_Table,'Working Variables-Must Hide'!$F$2,FALSE)*E152/12 -> 0 | I152: No | J152: 0 | K152: =VLOOKUP(TaxYearMM,ITA_Table,'Working Variables-Must Hide'!$E$2,FALSE)*E152/12 -> 0 | L152: 0
A153: 135 | F153: 0 | G153: 0 | H153: =VLOOKUP(TaxYearMM,ITA_Table,'Working Variables-Must Hide'!$F$2,FALSE)*E153/12 -> 0 | I153: No | J153: 0 | K153: =VLOOKUP(TaxYearMM,ITA_Table,'Working Variables-Must Hide'!$E$2,FALSE)*E153/12 -> 0 | L153: 0
A154: 136 | F154: 0 | G154: 0 | H154: =VLOOKUP(TaxYearMM,ITA_Table,'Working Variables-Must Hide'!$F$2,FALSE)*E154/12 -> 0 | I154: No | J154: 0 | K154: =VLOOKUP(TaxYearMM,ITA_Table,'Working Variables-Must Hide'!$E$2,FALSE)*E154/12 -> 0 | L154: 0
A155: 137 | F155: 0 | G155: 0 | H155: =VLOOKUP(TaxYearMM,ITA_Table,'Working Variables-Must Hide'!$F$2,FALSE)*E155/12 -> 0 | I155: No | J155: 0 | K155: =VLOOKUP(TaxYearMM,ITA_Table,'Working Variables-Must Hide'!$E$2,FALSE)*E155/12 -> 0 | L155: 0
A156: 138 | F156: 0 | G156: 0 | H156: =VLOOKUP(TaxYearMM,ITA_Table,'Working Variables-Must Hide'!$F$2,FALSE)*E156/12 -> 0 | I156: No | J156: 0 | K156: =VLOOKUP(TaxYearMM,ITA_Table,'Working Variables-Must Hide'!$E$2,FALSE)*E156/12 -> 0 | L156: 0
A157: 139 | F157: 0 | G157: 0 | H157: =VLOOKUP(TaxYearMM,ITA_Table,'Working Variables-Must Hide'!$F$2,FALSE)*E157/12 -> 0 | I157: No | J157: 0 | K157: =VLOOKUP(TaxYearMM,ITA_Table,'Working Variables-Must Hide'!$E$2,FALSE)*E157/12 -> 0 | L157: 0
A158: 140 | F158: 0 | G158: 0 | H158: =VLOOKUP(TaxYearMM,ITA_Table,'Working Variables-Must Hide'!$F$2,FALSE)*E158/12 -> 0 | I158: No | J158: 0 | K158: =VLOOKUP(TaxYearMM,ITA_Table,'Working Variables-Must Hide'!$E$2,FALSE)*E158/12 -> 0 | L158: 0
A159: 141 | F159: 0 | G159: 0 | H159: =VLOOKUP(TaxYearMM,ITA_Table,'Working Variables-Must Hide'!$F$2,FALSE)*E159/12 -> 0 | I159: No | J159: 0 | K159: =VLOOKUP(TaxYearMM,ITA_Table,'Working Variables-Must Hide'!$E$2,FALSE)*E159/12 -> 0 | L159: 0
A160: 142 | F160: 0 | G160: 0 | H160: =VLOOKUP(TaxYearMM,ITA_Table,'Working Variables-Must Hide'!$F$2,FALSE)*E160/12 -> 0 | I160: No | J160: 0 | K160: =VLOOKUP(TaxYearMM,ITA_Table,'Working Variables-Must Hide'!$E$2,FALSE)*E160/12 -> 0 | L160: 0
A161: 143 | F161: 0 | G161: 0 | H161: =VLOOKUP(TaxYearMM,ITA_Table,'Working Variables-Must Hide'!$F$2,FALSE)*E161/12 -> 0 | I161: No | J161: 0 | K161: =VLOOKUP(TaxYearMM,ITA_Table,'Working Variables-Must Hide'!$E$2,FALSE)*E161/12 -> 0 | L161: 0
A162: 144 | F162: 0 | G162: 0 | H162: =VLOOKUP(TaxYearMM,ITA_Table,'Working Variables-Must Hide'!$F$2,FALSE)*E162/12 -> 0 | I162: No | J162: 0 | K162: =VLOOKUP(TaxYearMM,ITA_Table,'Working Variables-Must Hide'!$E$2,FALSE)*E162/12 -> 0 | L162: 0
A163: 145 | F163: 0 | G163: 0 | H163: =VLOOKUP(TaxYearMM,ITA_Table,'Working Variables-Must Hide'!$F$2,FALSE)*E163/12 -> 0 | I163: No | J163: 0 | K163: =VLOOKUP(TaxYearMM,ITA_Table,'Working Variables-Must Hide'!$E$2,FALSE)*E163/12 -> 0 | L163: 0
A164: 146 | F164: 0 | G164: 0 | H164: =VLOOKUP(TaxYearMM,ITA_Table,'Working Variables-Must Hide'!$F$2,FALSE)*E164/12 -> 0 | I164: No | J164: 0 | K164: =VLOOKUP(TaxYearMM,ITA_Table,'Working Variables-Must Hide'!$E$2,FALSE)*E164/12 -> 0 | L164: 0
A165: 147 | F165: 0 | G165: 0 | H165: =VLOOKUP(TaxYearMM,ITA_Table,'Working Variables-Must Hide'!$F$2,FALSE)*E165/12 -> 0 | I165: No | J165: 0 | K165: =VLOOKUP(TaxYearMM,ITA_Table,'Working Variables-Must Hide'!$E$2,FALSE)*E165/12 -> 0 | L165: 0
A166: 148 | F166: 0 | G166: 0 | H166: =VLOOKUP(TaxYearMM,ITA_Table,'Working Variables-Must Hide'!$F$2,FALSE)*E166/12 -> 0 | I166: No | J166: 0 | K166: =VLOOKUP(TaxYearMM,ITA_Table,'Working Variables-Must Hide'!$E$2,FALSE)*E166/12 -> 0 | L166: 0
A167: 149 | F167: 0 | G167: 0 | H167: =VLOOKUP(TaxYearMM,ITA_Table,'Working Variables-Must Hide'!$F$2,FALSE)*E167/12 -> 0 | I167: No | J167: 0 | K167: =VLOOKUP(TaxYearMM,ITA_Table,'Working Variables-Must Hide'!$E$2,FALSE)*E167/12 -> 0 | L167: 0
A168: 150 | F168: 0 | G168: 0 | H168: =VLOOKUP(TaxYearMM,ITA_Table,'Working Variables-Must Hide'!$F$2,FALSE)*E168/12 -> 0 | I168: No | J168: 0 | K168: =VLOOKUP(TaxYearMM,ITA_Table,'Working Variables-Must Hide'!$E$2,FALSE)*E168/12 -> 0 | L168: 0
A169: 151 | F169: 0 | G169: 0 | H169: =VLOOKUP(TaxYearMM,ITA_Table,'Working Variables-Must Hide'!$F$2,FALSE)*E169/12 -> 0 | I169: No | J169: 0 | K169: =VLOOKUP(TaxYearMM,ITA_Table,'Working Variables-Must Hide'!$E$2,FALSE)*E169/12 -> 0 | L169: 0
A170: 152 | F170: 0 | G170: 0 | H170: =VLOOKUP(TaxYearMM,ITA_Table,'Working Variables-Must Hide'!$F$2,FALSE)*E170/12 -> 0 | I170: No | J170: 0 | K170: =VLOOKUP(TaxYearMM,ITA_Table,'Working Variables-Must Hide'!$E$2,FALSE)*E170/12 -> 0 | L170: 0
A171: 153 | F171: 0 | G171: 0 | H171: =VLOOKUP(TaxYearMM,ITA_Table,'Working Variables-Must Hide'!$F$2,FALSE)*E171/12 -> 0 | I171: No | J171: 0 | K171: =VLOOKUP(TaxYearMM,ITA_Table,'Working Variables-Must Hide'!$E$2,FALSE)*E171/12 -> 0 | L171: 0
A172: 154 | F172: 0 | G172: 0 | H172: =VLOOKUP(TaxYearMM,ITA_Table,'Working Variables-Must Hide'!$F$2,FALSE)*E172/12 -> 0 | I172: No | J172: 0 | K172: =VLOOKUP(TaxYearMM,ITA_Table,'Working Variables-Must Hide'!$E$2,FALSE)*E172/12 -> 0 | L172: 0
A173: 155 | F173: 0 | G173: 0 | H173: =VLOOKUP(TaxYearMM,ITA_Table,'Working Variables-Must Hide'!$F$2,FALSE)*E173/12 -> 0 | I173: No | J173: 0 | K173: =VLOOKUP(TaxYearMM,ITA_Table,'Working Variables-Must Hide'!$E$2,FALSE)*E173/12 -> 0 | L173: 0
A174: 156 | F174: 0 | G174: 0 | H174: =VLOOKUP(TaxYearMM,ITA_Table,'Working Variables-Must Hide'!$F$2,FALSE)*E174/12 -> 0 | I174: No | J174: 0 | K174: =VLOOKUP(TaxYearMM,ITA_Table,'Working Variables-Must Hide'!$E$2,FALSE)*E174/12 -> 0 | L174: 0
A175: 157 | F175: 0 | G175: 0 | H175: =VLOOKUP(TaxYearMM,ITA_Table,'Working Variables-Must Hide'!$F$2,FALSE)*E175/12 -> 0 | I175: No | J175: 0 | K175: =VLOOKUP(TaxYearMM,ITA_Table,'Working Variables-Must Hide'!$E$2,FALSE)*E175/12 -> 0 | L175: 0
A176: 158 | F176: 0 | G176: 0 | H176: =VLOOKUP(TaxYearMM,ITA_Table,'Working Variables-Must Hide'!$F$2,FALSE)*E176/12 -> 0 | I176: No | J176: 0 | K176: =VLOOKUP(TaxYearMM,ITA_Table,'Working Variables-Must Hide'!$E$2,FALSE)*E176/12 -> 0 | L176: 0
A177: 159 | F177: 0 | G177: 0 | H177: =VLOOKUP(TaxYearMM,ITA_Table,'Working Variables-Must Hide'!$F$2,FALSE)*E177/12 -> 0 | I177: No | J177: 0 | K177: =VLOOKUP(TaxYearMM,ITA_Table,'Working Variables-Must Hide'!$E$2,FALSE)*E177/12 -> 0 | L177: 0
A178: 160 | F178: 0 | G178: 0 | H178: =VLOOKUP(TaxYearMM,ITA_Table,'Working Variables-Must Hide'!$F$2,FALSE)*E178/12 -> 0 | I178: No | J178: 0 | K178: =VLOOKUP(TaxYearMM,ITA_Table,'Working Variables-Must Hide'!$E$2,FALSE)*E178/12 -> 0 | L178: 0
A179: 161 | F179: 0 | G179: 0 | H179: =VLOOKUP(TaxYearMM,ITA_Table,'Working Variables-Must Hide'!$F$2,FALSE)*E179/12 -> 0 | I179: No | J179: 0 | K179: =VLOOKUP(TaxYearMM,ITA_Table,'Working Variables-Must Hide'!$E$2,FALSE)*E179/12 -> 0 | L179: 0
A180: 162 | F180: 0 | G180: 0 | H180: =VLOOKUP(TaxYearMM,ITA_Table,'Working Variables-Must Hide'!$F$2,FALSE)*E180/12 -> 0 | I180: No | J180: 0 | K180: =VLOOKUP(TaxYearMM,ITA_Table,'Working Variables-Must Hide'!$E$2,FALSE)*E180/12 -> 0 | L180: 0
A181: 163 | F181: 0 | G181: 0 | H181: =VLOOKUP(TaxYearMM,ITA_Table,'Working Variables-Must Hide'!$F$2,FALSE)*E181/12 -> 0 | I181: No | J181: 0 | K181: =VLOOKUP(TaxYearMM,ITA_Table,'Working Variables-Must Hide'!$E$2,FALSE)*E181/12 -> 0 | L181: 0
A182: 164 | F182: 0 | G182: 0 | H182: =VLOOKUP(TaxYearMM,ITA_Table,'Working Variables-Must Hide'!$F$2,FALSE)*E182/12 -> 0 | I182: No | J182: 0 | K182: =VLOOKUP(TaxYearMM,ITA_Table,'Working Variables-Must Hide'!$E$2,FALSE)*E182/12 -> 0 | L182: 0
A183: 165 | F183: 0 | G183: 0 | H183: =VLOOKUP(TaxYearMM,ITA_Table,'Working Variables-Must Hide'!$F$2,FALSE)*E183/12 -> 0 | I183: No | J183: 0 | K183: =VLOOKUP(TaxYearMM,ITA_Table,'Working Variables-Must Hide'!$E$2,FALSE)*E183/12 -> 0 | L183: 0
A184: 166 | F184: 0 | G184: 0 | H184: =VLOOKUP(TaxYearMM,ITA_Table,'Working Variables-Must Hide'!$F$2,FALSE)*E184/12 -> 0 | I184: No | J184: 0 | K184: =VLOOKUP(TaxYearMM,ITA_Table,'Working Variables-Must Hide'!$E$2,FALSE)*E184/12 -> 0 | L184: 0
A185: 167 | F185: 0 | G185: 0 | H185: =VLOOKUP(TaxYearMM,ITA_Table,'Working Variables-Must Hide'!$F$2,FALSE)*E185/12 -> 0 | I185: No | J185: 0 | K185: =VLOOKUP(TaxYearMM,ITA_Table,'Working Variables-Must Hide'!$E$2,FALSE)*E185/12 -> 0 | L185: 0
A186: 168 | F186: 0 | G186: 0 | H186: =VLOOKUP(TaxYearMM,ITA_Table,'Working Variables-Must Hide'!$F$2,FALSE)*E186/12 -> 0 | I186: No | J186: 0 | K186: =VLOOKUP(TaxYearMM,ITA_Table,'Working Variables-Must Hide'!$E$2,FALSE)*E186/12 -> 0 | L186: 0
A187: 169 | F187: 0 | G187: 0 | H187: =VLOOKUP(TaxYearMM,ITA_Table,'Working Variables-Must Hide'!$F$2,FALSE)*E187/12 -> 0 | I187: No | J187: 0 | K187: =VLOOKUP(TaxYearMM,ITA_Table,'Working Variables-Must Hide'!$E$2,FALSE)*E187/12 -> 0 | L187: 0
A188: 170 | F188: 0 | G188: 0 | H188: =VLOOKUP(TaxYearMM,ITA_Table,'Working Variables-Must Hide'!$F$2,FALSE)*E188/12 -> 0 | I188: No | J188: 0 | K188: =VLOOKUP(TaxYearMM,ITA_Table,'Working Variables-Must Hide'!$E$2,FALSE)*E188/12 -> 0 | L188: 0
A189: 171 | F189: 0 | G189: 0 | H189: =VLOOKUP(TaxYearMM,ITA_Table,'Working Variables-Must Hide'!$F$2,FALSE)*E189/12 -> 0 | I189: No | J189: 0 | K189: =VLOOKUP(TaxYearMM,ITA_Table,'Working Variables-Must Hide'!$E$2,FALSE)*E189/12 -> 0 | L189: 0
A190: 172 | F190: 0 | G190: 0 | H190: =VLOOKUP(TaxYearMM,ITA_Table,'Working Variables-Must Hide'!$F$2,FALSE)*E190/12 -> 0 | I190: No | J190: 0 | K190: =VLOOKUP(TaxYearMM,ITA_Table,'Working Variables-Must Hide'!$E$2,FALSE)*E190/12 -> 0 | L190: 0
A191: 173 | F191: 0 | G191: 0 | H191: =VLOOKUP(TaxYearMM,ITA_Table,'Working Variables-Must Hide'!$F$2,FALSE)*E191/12 -> 0 | I191: No | J191: 0 | K191: =VLOOKUP(TaxYearMM,ITA_Table,'Working Variables-Must Hide'!$E$2,FALSE)*E191/12 -> 0 | L191: 0
A192: 174 | F192: 0 | G192: 0 | H192: =VLOOKUP(TaxYearMM,ITA_Table,'Working Variables-Must Hide'!$F$2,FALSE)*E192/12 -> 0 | I192: No | J192: 0 | K192: =VLOOKUP(TaxYearMM,ITA_Table,'Working Variables-Must Hide'!$E$2,FALSE)*E192/12 -> 0 | L192: 0
A193: 175 | F193: 0 | G193: 0 | H193: =VLOOKUP(TaxYearMM,ITA_Table,'Working Variables-Must Hide'!$F$2,FALSE)*E193/12 -> 0 | I193: No | J193: 0 | K193: =VLOOKUP(TaxYearMM,ITA_Table,'Working Variables-Must Hide'!$E$2,FALSE)*E193/12 -> 0 | L193: 0
A194: 176 | F194: 0 | G194: 0 | H194: =VLOOKUP(TaxYearMM,ITA_Table,'Working Variables-Must Hide'!$F$2,FALSE)*E194/12 -> 0 | I194: No | J194: 0 | K194: =VLOOKUP(TaxYearMM,ITA_Table,'Working Variables-Must Hide'!$E$2,FALSE)*E194/12 -> 0 | L194: 0
A195: 177 | F195: 0 | G195: 0 | H195: =VLOOKUP(TaxYearMM,ITA_Table,'Working Variables-Must Hide'!$F$2,FALSE)*E195/12 -> 0 | I195: No | J195: 0 | K195: =VLOOKUP(TaxYearMM,ITA_Table,'Working Variables-Must Hide'!$E$2,FALSE)*E195/12 -> 0 | L195: 0
A196: 178 | F196: 0 | G196: 0 | H196: =VLOOKUP(TaxYearMM,ITA_Table,'Working Variables-Must Hide'!$F$2,FALSE)*E196/12 -> 0 | I196: No | J196: 0 | K196: =VLOOKUP(TaxYearMM,ITA_Table,'Working Variables-Must Hide'!$E$2,FALSE)*E196/12 -> 0 | L196: 0
A197: 179 | F197: 0 | G197: 0 | H197: =VLOOKUP(TaxYearMM,ITA_Table,'Working Variables-Must Hide'!$F$2,FALSE)*E197/12 -> 0 | I197: No | J197: 0 | K197: =VLOOKUP(TaxYearMM,ITA_Table,'Working Variables-Must Hide'!$E$2,FALSE)*E197/12 -> 0 | L197: 0
A198: 180 | F198: 0 | G198: 0 | H198: =VLOOKUP(TaxYearMM,ITA_Table,'Working Variables-Must Hide'!$F$2,FALSE)*E198/12 -> 0 | I198: No | J198: 0 | K198: =VLOOKUP(TaxYearMM,ITA_Table,'Working Variables-Must Hide'!$E$2,FALSE)*E198/12 -> 0 | L198: 0
A199: 181 | F199: 0 | G199: 0 | H199: =VLOOKUP(TaxYearMM,ITA_Table,'Working Variables-Must Hide'!$F$2,FALSE)*E199/12 -> 0 | I199: No | J199: 0 | K199: =VLOOKUP(TaxYearMM,ITA_Table,'Working Variables-Must Hide'!$E$2,FALSE)*E199/12 -> 0 | L199: 0
A200: 182 | F200: 0 | G200: 0 | H200: =VLOOKUP(TaxYearMM,ITA_Table,'Working Variables-Must Hide'!$F$2,FALSE)*E200/12 -> 0 | I200: No | J200: 0 | K200: =VLOOKUP(TaxYearMM,ITA_Table,'Working Variables-Must Hide'!$E$2,FALSE)*E200/12 -> 0 | L200: 0
A201: 183 | F201: 0 | G201: 0 | H201: =VLOOKUP(TaxYearMM,ITA_Table,'Working Variables-Must Hide'!$F$2,FALSE)*E201/12 -> 0 | I201: No | J201: 0 | K201: =VLOOKUP(TaxYearMM,ITA_Table,'Working Variables-Must Hide'!$E$2,FALSE)*E201/12 -> 0 | L201: 0
A202: 184 | F202: 0 | G202: 0 | H202: =VLOOKUP(TaxYearMM,ITA_Table,'Working Variables-Must Hide'!$F$2,FALSE)*E202/12 -> 0 | I202: No | J202: 0 | K202: =VLOOKUP(TaxYearMM,ITA_Table,'Working Variables-Must Hide'!$E$2,FALSE)*E202/12 -> 0 | L202: 0
A203: 185 | F203: 0 | G203: 0 | H203: =VLOOKUP(TaxYearMM,ITA_Table,'Working Variables-Must Hide'!$F$2,FALSE)*E203/12 -> 0 | I203: No | J203: 0 | K203: =VLOOKUP(TaxYearMM,ITA_Table,'Working Variables-Must Hide'!$E$2,FALSE)*E203/12 -> 0 | L203: 0
A204: 186 | F204: 0 | G204: 0 | H204: =VLOOKUP(TaxYearMM,ITA_Table,'Working Variables-Must Hide'!$F$2,FALSE)*E204/12 -> 0 | I204: No | J204: 0 | K204: =VLOOKUP(TaxYearMM,ITA_Table,'Working Variables-Must Hide'!$E$2,FALSE)*E204/12 -> 0 | L204: 0
A205: 187 | F205: 0 | G205: 0 | H205: =VLOOKUP(TaxYearMM,ITA_Table,'Working Variables-Must Hide'!$F$2,FALSE)*E205/12 -> 0 | I205: No | J205: 0 | K205: =VLOOKUP(TaxYearMM,ITA_Table,'Working Variables-Must Hide'!$E$2,FALSE)*E205/12 -> 0 | L205: 0
... 3813 more rows

Sheet Working Variables-Must Hide (hidden)
B2: 1 | C2: =B2+1 -> 2 | D2: =C2+1 -> 3 | E2: =D2+1 -> 4 | F2: =E2+1 -> 5
B4: Available Tax Years | C4: YMPE | D4: Maximum DB PA | E4: PA Offset | F4: Maximum DB Accrual
B6: 2023 | C6: 66600 | D6: =ROUND(F6*9-600,0) -> 30960 | E6: 600 | F6: 3506.67
B7: 2022 | C7: 64900 | D7: =ROUND(F7*9-600,0) -> 30180 | E7: 600 | F7: 3420
B8: 2021 | C8: 61600 | D8: =ROUND(F8*9-600,0) -> 28610 | E8: 600 | F8: 3245.56
B9: 2020 | C9: 58700 | D9: =ROUND(F9*9-600,0) -> 27230 | E9: 600 | F9: 3092.22
B10: 2019 | C10: 57400 | D10: =ROUND(F10*9-600,0) -> 26630 | E10: 600 | F10: 3025.56
B11: 2018 | C11: 55900 | D11: 25900 | E11: 600 | F11: 2944.44
B12: 2017 | C12: 55300 | D12: 25630 | E12: 600 | F12: 2914.44
B13: 2016 | C13: 54900 | D13: 25410 | E13: 600 | F13: 2890
B14: 2015 | C14: 53600 | D14: 24770 | E14: 600 | F14: 2818.89
B15: 2014 | C15: 52500 | D15: 24330 | E15: 600 | F15: 2770
B16: 2013 | C16: 51100 | D16: 23670 | E16: 600 | F16: 2696.67
B17: 2012 | C17: 50100 | D17: 23220 | E17: 600 | F17: 2646.67
B18: 2011 | C18: 48300 | D18: 22370 | E18: 600 | F18: 2552.22
B19: 2010 | C19: 47200 | D19: 21850 | E19: 600 | F19: 2494.44
B20: 2009 | C20: 46300 | D20: 21400 | E20: 600 | F20: 2444.44
B21: 2008 | C21: 44900 | D21: 20400 | E21: 600 | F21: 2333.33
B22: 2007 | C22: 43700 | D22: 19400 | E22: 600 | F22: 2222.22
B23: 2006 | C23: 42100 | D23: 18400 | E23: 600 | F23: 2111.11
B24: 2005 | C24: 41100 | D24: 17400 | E24: 600 | F24: 2000
B25: 2004 | C25: 40500 | D25: 15900 | E25: 600 | F25: 1833.33

Sheet Notes-Must Hide (hidden)
A1: Date | B1: Who | C1: Tab | D1: Comment
A2: 2018-03-20 | B2: G Abell | C2: Single Member | D2: Change version date
C3: Multiple Members | D3: Change version date (default from above)
D4: Expand available member calculations from 180 to 500
D5: Allow users to access all cells, not just input cells (users could click out to column L, for example, to "Copy and Paste" results)
C6: General | D6: Lock and Hide all cells
D7: Unlock only the input cells
D8: Protect worksheet and allow users to access all locked and unlocked cells
D9: Hide identified tabs
D10: Protect workbook
D11: Leave cursor on cell with year as default position
D12: Save spreadsheet on Single Member tab as default
A14: 2018-11-02 | B14: E Hou | C14: Source | D14: Copy from "Pension Adjustment calculator_(20180320)_gaeh.xls"
C15: Working Variables-Must Hide | D15: add 2019 parameters
C17: Single Member | D17: Change version date -> to be updated
D19: Change "Tax Year (2004 to 2018)" to a formula: "="Tax Year (2004 to "&'Working Variables-Must Hide'!B6& " )"
D21: Expend/Rename the table for VLOOKUP YMPE, Maximum DB PA, PA Offset and Maximum DB Accrual - see below
D22: Use Find and Replace to replace 'Working Variables-Must Hide'!$B$6:$F$20 with ITA_Table
C24: Cell D5 =>
C42: Multiple Members | D42: change "Tax Year (2004 to 2018)" to a formula "='Single Member'!B6"
D44: Expend/Rename the table for VLOOKUP YMPE, Maximum DB PA, PA Offset and Maximum DB Accrual - see below
D45: Use Find and Replace to replace 'Working Variables-Must Hide'!$B$6:$F$20 with ITA_Table
A47: 2019-01-14 | B47: E Hou | C47: Source | D47: Copy from "OMERS 2019 PA Calculator_(20181108)_gaeh (edit this version)"
D49: Reason for update: One of employers would like to have flexibility to add or insert the columns. For the previous version, we protected the entire sheet and then ONLY unprotected the cells where we allowed the data input from the user.
D50: Here is the update on the new version:
C51: Single Member Tab | D51: Update cell D3 (version date)
D52: Step 1: Unprotect the entire sheet
D69: Step 2: Highlighted the cells A1 to E23.
D70: Step 3: Click on Format Cells and check the "Locked" and "Hidden" boxes.
D89: Step 4: Highlight the cells D6 to D8 and uncheck the "Locked" and "Hidden" boxes.
D107: Step 5: password protect the sheet
C136: Multiple Members Tab | D136: Step 1: Unprotect the entire sheet
D154: Step 2: Highlighted the cells A1 to M517 N4019 (revised since extended working cells to 4000 per employer request)
D155: Step 3: Click on Format Cells and check the "Locked" and "Hidden" boxes.
D174: Step 4: Highlight the cells D5 and B17-E516 B19-E4018 and uncheck the "Locked" and "Hidden" boxes.
D192: Step 5: password protect the sheet
A220: 2019-01-29 | B220: E Hou | C220: Source | D220: Copy from "OMERS 2019 PA Calculator_(20190114)_gaeh (edit this version)"
C222: Work area (Optional) tab | D222: new tab - user's work area
C224: Single Member Tab | D224: Update cell D3 (version date)
D225: The protected cells were set up previously. I just added the password to protect the worksheet.
C227: Multiple Members Tab | D227: The protected cells were set up previously. I just added the password to protect the worksheet.
A230: 2019-01-30 | B230: G Abell / | C230: Source | D230: Copy from "OMERS 2019 PA Calculator_(20190129) (IN DEVELOPMENT)_gaeh (edit this version)"
B231: K Lau
C232: Single Member Tab | D232: Update cell D3 (version date)
C234: Multiple Members Tab | D234: Extend working area to 4,000 members per request from employer
D235: Add "Set Print Margins" button
D236: Add "Total" row per request from employer
A238: 2019-02-04 | B238: G Abell | C238: General | D238: Add 4 additional optional "Work Area" tabs
C240: Multiple Members | D240: Be sure to reset "Set Print Range"
A243: 2019-12-04 | B243: J Kong | C243: General | D243: Copy from "OMERS 2019 PA Calculator_(20190204) (IN DEVELOPMENT)_gaeh (edit this version)"
C245: Single Member Tab | D245: Update cell D3 (version date)
C247: Multiple Members | D247: Be sure to reset "Set Print Range"
A249: 2019-12-16 | C249: Single Member/Multiple Members Tabs | D249: Updated "OMERS pension formula" to "Year's lifetime pension (OMERS)"
D250: Updated “Is OMERS pension formula greater than maximum DB benefit entitlement?” to “Is Year’s lifetime pension greater than maximum DB benefit entitlement?”
A252: 2020-11-06 | B252: J Kong | C252: General | D252: Copy from "OMERS 2020 PA Calculator_(20191216)_gaeh (edit this version).xlsm"
C254: Single Member Tab | D254: Update cell D3 (version date)
C256: Multiple Members | D256: Be sure to reset "Set Print Range"
A259: 2021-11-04 | B259: J Kong | C259: General | D259: Copy from "OMERS 2021 PA Calculator_(20201106)_gaeh (edit this version).xlsm"
C261: Single Member Tab | D261: Update cell D3 (version date)
A264: 2022-11-02 | B264: J Kong | C264: General | D264: Copy from "OMERS 2022 PA Calculator_(20211104)_gaeh_(edit).xlsm"
C266: Single Member Tab | D266: Update cell D3 (version date)
